Workbook

Sheet Tabelle1
B2: Ordentliche Kapitalerhöhung
B4: Aktiva | C4: Bilanz vor der Kapitalerhöhung | E4: Passiva | G4: Emmissionsdatum | H4: 2011-01-01 | K4: Dividende vor der Kapitalerhöhung
B5: Anlagevermögen | C5: 60000000 | D5: gezeichnetes Kapital | E5: 40000000 | G5: Dividendendatum | H5: 2011-12-31 | K5: Dividende in % | L5: 0.05 | N5: alternative Angaben
B6: Vorräte | C6: 35000000 | D6: Kapitalrücklagen | E6: 1000000 | G6: Kapitalerhöhung | H6: 5000000 | K6: Gesamtdividende | L6: =E5*L5 -> 2000000
B7: Forderungen | C7: 10000000 | D7: Gewinnrücklagen | E7: 6000000 | G7: Aktiennennwert | H7: 5 | K7: Gesamtdividende
B8: liquide Mittel | C8: 4500000 | D8: Eigenkapital | E8: =SUM(E5:E7) -> 47000000 | G8: Kurs alter Aktien | H8: 19.6 | K8: Dividende in % | L8: =IF(L7>0,L7/E5,"") -> 
B9: Umlaufvermögen | C9: =SUM(C6:C8) -> 49500000 | D9: Rückstellungen | E9: 10000000 | G9: Emmissionskurs | H9: 17.5 | K9: Dividende nach der Kapitalerhöhung
D10: Verbindlichkeiten | E10: 52500000 | G10: Ausschluss von | H10: 0 | K10: Dividende in % | L10: 0.06 | N10: alternative Angaben
C11: =C5+C9 -> 109500000 | E11: =E8+E9+E10 -> 109500000 | G11: Bezugsrechten in % | K11: Gesamtdividende | L11: 2700000
B12: Bilanzkurs in € | C12: =E8/H14 -> 5.875 | D12: Bilanzkurs in % | E12: =E8/E5 -> 1.175 | G12: Zuzahlungen je Aktie | H12: 0.5 | K12: Gesamtdividende
K13: Dividende in % | L13: =IF(L12>0,L12/E15,"") -> 
B14: Aktiva | C14: Bilanz nach der Kapitalerhöhung | E14: Passiva | G14: Anzahl Altaktien | H14: =E5/H7 -> 8000000 | K14: Jahresdividende je Altaktie | L14: =IF(L10>0,L10*H7,L13*H7) -> 0.3
B15: Anlagevermögen | C15: =C5 -> 60000000 | D15: gezeichnetes Kapital | E15: =E5+H6 -> 45000000 | G15: Bezugsverhältnis | H15: =E5/(H6-(H6*H10)) -> 8 | I15: :1
B16: Vorräte | C16: =C6 -> 35000000 | D16: Kapitalrücklagen | E16: =E6+((H19*H9)-H6) -> 13500000 | G16: Mittelkurs | H16: =H8-H17 -> 19.36666667 | K16: Dividendentage für die Jungaktien | L16: =DAYS360(H4,H5) -> 360
B17: Forderungen | C17: =C7 -> 10000000 | D17: Gewinnrücklagen | E17: =E7 -> 6000000 | G17: rechnerischer Wert | H17: =(H8-H9)/(H15+1) -> 0.2333333333
B18: liquide Mittel | C18: =(H19*H9)+C8 -> 22000000 | D18: Eigenkapital | E18: =SUM(E15:E17) -> 64500000 | G18: eines Bezugsrechtes | K18: Jahresdividende je Jungaktie | L18: =IF(L10>0,H7*L10*L16/360,H7*L13*L16/360) -> 0.3
B19: Umlaufvermögen | C19: =SUM(C16:C18) -> 67000000 | D19: Rückstellungen | E19: =E9 -> 10000000 | G19: Anzahl der Jungaktien | H19: =H6/H7 -> 1000000
D20: Verbindlichkeiten | E20: =E10 -> 52500000 | K20: Dividendennachteil | L20: =L14-L18 -> 0
C21: =C15+C19 -> 127000000 | E21: =E18+E19+E20 -> 127000000 | G21: Eingabewerte | K21: rechnerischer Wert des Bezugsrechtes mit Dividendennachteil | L21: =(H8-(H9+L20))/(H15+1) -> 0.2333333333
B22: Bilanzkurs in € | C22: =E18/(H14+H19) -> 7.166666667 | D22: Bilanzkurs in % | E22: =E18/E15 -> 1.433333333 | G22: berechnete Werte
B24: Kauf bzw. Verkauf von Bezugsrechten bei einer bestimmten Nachfrage nach Jungaktien | D24: Wie viele Jungaktien kann ein Aktionär aufgrund bestehender Bezugsrechte erwerben?
G25: Geben Sie jeweils die Ausgangsdaten über die Menus ein. Entnehmen Sie die Ausgabewerte der Tabelle. (Die Bilanzen werden immer nach der Gewinnverwendung dargestellt)
B27: Anzahl Altaktien | C27: 1000 | D27: Anzahl Altaktien | E27: =C27 -> 1000
B28: Nachfrage Jungaktien | C28: 1000 | D28: Jungaktien ohne Kauf von Bezugsrechten | E28: =ROUNDDOWN(E27/H15,0) -> 125
B29: benötigte Bezugsrechte | C29: =ROUNDUP(H15*C28,0) -> 8000
B31: Differenz in Bezugsrechten | C31: =C27-C29 -> -7000 | D31: =IF(C31<0,"Bezugsrechtskauf notwendig",IF(C31>0,"Verkauf von Bezugsrechten","")) -> Bezugsrechtskauf notwendig
B34: Bankabrechnung Aktienkauf | C34: Aktienanzahl | D34: Abrechnung in € | G34: Dividenden- abrechnung | H34: Jahresdividende in € | K34: Vermögenwert des Aktionärs | L34: Werte in €
B36: Aktien ohne Zukauf von Bezugsrechten | C36: =IF(C31>=0,C28,E28) -> 125 | D36: =H9*C36 -> 2187.5 | E36: Kurswert | G36: Dividende für Altaktien | H36: =C27*L14 -> 300 | K36: vor der Kapitalerhöhung | L36: =C27*H8 -> 19600
B38: Aktien mit Zukauf von Bezugsrechten | C38: =IF(C31>=0,0,(C28-E28)) -> 875 | D38: =IF(C31>=0,0,(H9*C38)+((C31*-1)*L21)) -> 16945.83333 | E38: Kurswert + Wert der Bezugsrechte | G38: Dividende für Jungaktien | H38: =C28*L18 -> 300 | K38: Kurswert nach der Kapitalerhöhung | L38: =(C27+C28)*H16 -> 38733.33333
B40: Zuzahlung | D40: =C28*H12 -> 500 | E40: Gesamtzuzahlung | G40: Gesamtdividende | H40: =H36+H38 -> 600 | K40: Wert der Jungaktien | L40: =C28*H9 -> 17500
B42: Bezugsrechts- auszahlung | C42: =IF(C31>=0,C31,0) -> 0 | D42: =C42*H17 -> 0 | E42: bei Bezugsrechts- verkauf | K42: Bezugsrechtskauf | L42: =IF(C31>=0,0,(C31*-1)*L21) -> 1633.333333
B44: Gesamtbetrag | C44: =C28 -> 1000 | D44: =D36+D38+D40-D42 -> 19633.33333 | E44: bei Bezugsrechts- verkauf | K44: Bezugsrechts- auszahlung | L44: =D42 -> 0
K46: Wertveränderung (muss 0 sein) | L46: =L38-L36-L40-L42+L44 -> 1.136868377e-12

Sheet Tabelle2

Sheet Tabelle3
